fUST/lending_fUST_20250604
["ID","MTS","AMOUNT","RATE_DAILY","PERIOD"]
[364136192,1749015038307,-440.0,0.00019611,2]
[364136193,1749015038317,-440.0,0.00019611,2]
[364136194,1749015038329,-160.0,0.00019612,2]
[364136195,1749015038338,-430.0,0.00019613,2]
[364136196,1749015038347,-421.94778746,0.00019613,2]
[364136197,1749015038357,-461.06129069,0.00019613,2]
[364136198,1749015038369,-227.13398052,0.00019614,2]
[364136454,1749015042762,-144.72024415,0.00019614,2]
[364136457,1749015042772,-570.64762407,0.00019714,2]
[364136460,1749015042784,-229.35237593,0.00019714,2]
[364136463,1749015042794,-180.81191979,0.00019728,2]
[364136469,1749015042820,-384.82887906,0.00019728,2]
[364136472,1749015042830,-208.897,0.00019784,2]
[364136475,1749015042839,-440.0,0.00019861,2]
[364136478,1749015042849,-440.0,0.00019862,2]
[364136481,1749015042859,-472.23,0.00019862,2]
[364136484,1749015042868,-284.58931713,0.00019862,2]
[364136487,1749015042879,-440.0,0.00019862,2]
[364136490,1749015042889,-440.0,0.00019862,2]
[364136493,1749015042901,-440.0,0.00019862,2]
[364136497,1749015042910,-420.0,0.00019862,2]
[364136500,1749015042920,-440.0,0.00019863,2]
[364136503,1749015042929,-440.0,0.00019884,2]
[364136506,1749015042939,-440.0,0.00019884,2]
[364136509,1749015042948,-440.0,0.00019884,2]
[364136512,1749015042957,-440.0,0.00019885,2]
[364136515,1749015042966,-536.7737139,0.00019885,2]
[364136519,1749015042975,-440.0,0.00019885,2]
[364136522,1749015042986,-500.0,0.00019899,2]
[364136525,1749015042996,-565.64079885,0.00019934,2]
[364136527,1749015043005,-319.6416366,0.00020027,2]
[364136529,1749015043015,-176.6037853,0.00020027,2]
[364136531,1749015043024,-156.5942477,0.00020027,2]
[364136533,1749015043033,-572.7197194,0.00020027,2]
[364136535,1749015043042,-440.0,0.00020135,2]
[364136537,1749015043052,-440.0,0.00020136,2]
[364136539,1749015043061,-472.23,0.00020136,2]
[364136541,1749015043070,-440.0,0.00020136,2]
[364136543,1749015043079,-440.0,0.00020136,2]
[364136545,1749015043089,-410.0,0.00020136,2]
[364136547,1749015043099,-440.0,0.00020136,2]
[364136548,1749015043109,-565.64079885,0.00020141,2]
[364136550,1749015043118,-410.0,0.00020158,2]
[364136552,1749015043129,-440.0,0.00020158,2]
[364136555,1749015043138,-299.17,0.00020158,2]
[364136557,1749015043148,-440.0,0.00020159,2]
[364136559,1749015043157,-440.0,0.00020159,2]
[364136560,1749015043166,-364.5816698,0.00020301,2]
[364136562,1749015043175,-364.5816698,0.00020301,2]
[364136565,1749015043185,-364.5816698,0.00020301,2]
[364136567,1749015043195,-900.0,0.00020331,2]
[364136569,1749015043204,-565.64079885,0.00020348,3]
[364136571,1749015043214,-440.0,0.00020409,2]
[364136573,1749015043223,-440.0,0.0002041,2]
[364136575,1749015043233,-472.23,0.0002041,2]
[364136577,1749015043242,-440.0,0.0002041,2]
[364136579,1749015043251,-584.31,0.0002041,2]
[364136580,1749015043262,-440.0,0.0002041,2]
[364136583,1749015043272,-440.0,0.00020432,2]
[364136584,1749015043282,-440.0,0.00020433,2]
[364136587,1749015043292,-440.0,0.00020433,2]
[364136588,1749015043302,-565.64079885,0.00020555,3]
[364136589,1749015043312,-440.0,0.00020683,2]
[364136590,1749015043321,-440.0,0.00020684,2]
[364136591,1749015043330,-472.23,0.00020684,2]
[364136592,1749015043339,-440.0,0.00020684,2]
[364136593,1749015043349,-440.0,0.00020684,2]
[364136594,1749015043361,-440.0,0.00020706,2]
[364136595,1749015043370,-440.0,0.00020707,2]
[364136596,1749015043380,-440.0,0.00020707,2]
[364136597,1749015043389,-565.64079885,0.00020762,3]
[364136598,1749015043398,-500.0,0.00020849,2]
[364136599,1749015043407,-176.6037853,0.00020849,2]
[364136600,1749015043416,-572.7197194,0.00020849,2]
[364136601,1749015043426,-176.6037853,0.00020849,2]
[364136602,1749015043436,-572.7197194,0.00020849,2]
[364136603,1749015043445,-572.7197194,0.00020849,2]
[364136604,1749015043455,-176.6037853,0.00020849,2]
[364136605,1749015043464,-176.6037853,0.00020849,2]
[364136606,1749015043473,-178.8938448,0.00020849,2]
[364136607,1749015043482,-302.9609859,0.00020849,2]
[364136608,1749015043491,-581.0086316,0.00020849,2]
[364136609,1749015043500,-153.0,0.00020849,2]
[364136610,1749015043510,-154.9256923,0.00020849,2]
[364136611,1749015043520,-476.6881919,0.00020849,2]
[364136612,1749015043530,-153.0,0.00020849,2]
[364136614,1749015043539,-153.0,0.00020849,2]
[364136615,1749015043549,-153.0,0.00020849,2]
[364136617,1749015043558,-153.0,0.00020849,2]
[364136619,1749015043567,-440.0,0.00020957,2]
[364136621,1749015043577,-440.0,0.00020958,2]
[364136623,1749015043586,-472.23,0.00020958,2]
[364136625,1749015043596,-221.31042886,0.00020958,2]
[364136627,1749015043605,-440.0,0.00020958,2]
[364136629,1749015043614,-565.64079885,0.00020969,4]
[364136631,1749015043625,-258.4,0.0002098,2]
[364136633,1749015043635,-440.0,0.00020981,2]
[364136635,1749015043644,-440.0,0.00020981,2]
[364136637,1749015043654,-500.0,0.00021099,2]
[364136639,1749015043664,-23489.73319515,0.000211,2]
[364136641,1749015043674,-440.0,0.00021231,2]
[364136643,1749015043683,-477.84,0.00021232,2]
[364136645,1749015043693,-472.23,0.00021232,2]
[364136647,1749015043702,-440.0,0.00021232,2]
[364136649,1749015043711,-363.43196572,0.00021255,2]
[364136651,1749015043720,-440.0,0.00021255,2]
[364136653,1749015043729,-364.28,0.00021356,10]
[364136655,1749015043739,-303.57,0.00021356,10]
[364136669,1749015043865,-500.0,0.00021365,2]
[364136671,1749015043875,-207.4,0.00021366,2]
[364136673,1749015043885,-500.0,0.00021366,2]
[364136675,1749015043898,-500.0,0.00021366,2]
[364136677,1749015043908,-500.0,0.00021366,2]
[364136679,1749015043917,-500.0,0.00021366,2]
[364136681,1749015043926,-500.0,0.00021366,2]
[364136683,1749015043937,-500.0,0.00021366,2]
[364136685,1749015043947,-500.0,0.00021366,2]
[364136687,1749015043956,-500.0,0.00021366,2]
[364136689,1749015043966,-500.0,0.00021366,2]
[364136691,1749015043975,-500.0,0.00021366,2]
[364136693,1749015043984,-500.0,0.00021366,2]
[364136695,1749015043994,-500.0,0.00021366,2]
[364136697,1749015044004,-500.0,0.00021366,2]
[364136699,1749015044014,-500.0,0.00021366,2]
[364136701,1749015044024,-500.0,0.00021366,2]
[364136703,1749015044033,-500.0,0.00021366,2]
[364136705,1749015044044,-500.0,0.00021366,2]
[364136707,1749015044053,-500.0,0.00021366,2]
[364136709,1749015044062,-500.0,0.00021366,2]
[364136711,1749015044072,-500.0,0.00021366,2]
[364136713,1749015044081,-500.0,0.00021366,2]
[364136715,1749015044091,-500.0,0.00021366,2]
[364136717,1749015044100,-500.0,0.00021366,2]
[364136719,1749015044110,-500.0,0.00021366,2]
[364136721,1749015044119,-500.0,0.00021366,2]
[364136723,1749015044131,-500.0,0.00021366,2]
[364136725,1749015044140,-500.0,0.00021366,2]
[364136727,1749015044150,-500.0,0.00021366,2]
[364136729,1749015044159,-500.0,0.00021366,2]
[364136731,1749015044170,-500.0,0.00021366,2]
[364136733,1749015044179,-258.0,0.00021366,2]
[364136735,1749015044188,-565.64079885,0.00021383,5]
[364136737,1749015044199,-900.0,0.00021427,2]
[364136739,1749015044208,-440.0,0.00021505,2]
[364136741,1749015044218,-472.23,0.00021506,2]
[364136743,1749015044227,-440.0,0.00021506,2]
[364136745,1749015044237,-440.0,0.00021529,2]
[364136747,1749015044247,-1423.117731,0.0002156,3]
[364136749,1749015044256,-565.64079885,0.0002159,5]
[364136751,1749015044266,-205.467601,0.00021753,2]
[364136753,1749015044275,-205.467601,0.00021753,2]
[364136755,1749015044285,-440.0,0.00021779,2]
[364136757,1749015044294,-472.23,0.0002178,2]
[364136759,1749015044304,-440.0,0.0002178,2]
[364136761,1749015044314,-437.14,0.00021786,10]
[364136763,1749015044323,-565.64079885,0.00021797,6]
[364136765,1749015044332,-440.0,0.00021803,2]
[364136767,1749015044342,-3396.98248838,0.000219,2]
[364136769,1749015044351,-5807.14889274,0.00021999,2]
[364136771,1749015044364,-1953.41833321,0.00021999,2]
[364136774,1749015044377,-2194.33349557,0.00021999,2]
[364136875,1749015045909,-830.6395,0.00021999,2]
[364137067,1749015117000,209.478977,0.00013699,2]
[364137069,1749015432945,194.0,0.00024657,120]
[364137178,1749016231926,-1115.51770175,0.00018887,2]
[364137179,1749016232337,-1758.29695784,0.00018887,2]
[364137180,1749016232372,-1074.74166481,0.00018887,2]
[364137181,1749016232846,-1051.4436756,0.00018887,2]
[364137182,1749016232856,-293.0281551,0.00019078,2]
[364137183,1749016232866,-218.7324669,0.00019178,2]
[364137184,1749016232876,-167.56104164,0.00019302,2]
[364137185,1749016232886,-167.84415729,0.00019513,2]
[364137186,1749016232895,-300.0,0.00019586,2]
[364137187,1749016232905,-300.0,0.00019586,2]
[364137188,1749016232915,-300.0,0.00019586,2]
[364137189,1749016232924,-440.0,0.00019587,2]
[364137190,1749016232933,-440.0,0.00019587,2]
[364137191,1749016232943,-500.0,0.00019587,2]
[364137192,1749016232952,-440.0,0.00019587,2]
[364137193,1749016232961,-156.03,0.00019587,2]
[364137194,1749016232970,-440.0,0.00019587,2]
[364137195,1749016232980,-440.0,0.00019587,2]
[364137196,1749016232990,-440.0,0.00019587,2]
[364137197,1749016232999,-440.0,0.00019587,2]
[364137198,1749016233009,-440.0,0.00019587,2]
[364137199,1749016233018,-440.0,0.00019587,2]
[364137200,1749016233028,-440.0,0.00019587,2]
[364137201,1749016233038,-440.0,0.00019587,2]
[364137202,1749016233048,-440.0,0.00019587,2]
[364137203,1749016233057,-171.7,0.00019587,2]
[364137204,1749016233067,-160.0,0.00019588,2]
[364137205,1749016233077,-423.69433488,0.00019588,2]
[364137206,1749016233087,-229.45591648,0.00019588,2]
[364137207,1749016233097,-151.0,0.00019597,2]
[364137208,1749016233106,-440.0,0.00019608,2]
[364137209,1749016233116,-495.48,0.00019608,2]
[364137210,1749016233127,-487.73,0.00019608,2]
[364137211,1749016233136,-440.0,0.00019608,2]
[364137212,1749016233147,-430.0,0.00019608,2]
[364137213,1749016233156,-440.0,0.00019608,2]
[364137214,1749016233166,-440.0,0.00019608,2]
[364137215,1749016233185,-440.0,0.00019608,2]
[364137216,1749016233195,-440.0,0.00019608,2]
[364137217,1749016233205,-440.0,0.00019608,2]
[364137218,1749016233215,-440.0,0.00019608,2]
[364137219,1749016233224,-430.0,0.00019608,2]
[364137220,1749016233234,-440.0,0.00019608,2]
[364137221,1749016233244,-440.0,0.00019608,2]
[364137222,1749016233254,-440.0,0.00019608,2]
[364137223,1749016233264,-440.0,0.00019608,2]
[364137224,1749016233273,-440.0,0.00019608,2]
[364137225,1749016233282,-192.6235388,0.00019608,2]
[364137226,1749016233290,-440.0,0.00019608,2]
[364137227,1749016233299,-440.0,0.00019608,2]
[364137228,1749016233307,-440.0,0.00019609,2]
[364137229,1749016233316,-440.0,0.00019609,2]
[364137230,1749016233325,-440.0,0.00019609,2]
[364137231,1749016233335,-440.0,0.00019609,2]
[364137232,1749016233345,-440.0,0.00019609,2]
[364137233,1749016233359,-440.0,0.00019609,2]
[364137234,1749016233368,-430.0,0.00019609,2]
[364137235,1749016233379,-440.0,0.00019609,2]
[364137236,1749016233390,-440.0,0.00019609,2]
[364137237,1749016233400,-222.28,0.00019609,2]
[364137238,1749016233410,-440.0,0.00019609,2]
[364137239,1749016233421,-440.0,0.00019609,2]
[364137240,1749016233432,-430.0,0.00019609,2]
[364137241,1749016233442,-440.0,0.00019609,2]
[364137242,1749016233453,-440.0,0.00019609,2]
[364137243,1749016233463,-440.0,0.00019609,2]
[364137244,1749016233473,-440.0,0.00019609,2]
[364137245,1749016233484,-440.0,0.00019609,2]
[364137246,1749016233495,-201.42,0.00019609,2]
[364137247,1749016233505,-440.0,0.00019609,2]
[364137248,1749016233516,-430.0,0.00019609,2]
[364137249,1749016233526,-440.0,0.00019609,2]
[364137250,1749016233537,-440.0,0.00019609,2]
[364137251,1749016233547,-440.0,0.0001961,2]
[364137252,1749016233557,-440.0,0.00019613,2]
[364137253,1749016233568,-440.0,0.00019613,2]
[364137254,1749016233578,-326.19704284,0.00019613,2]
[364137255,1749016233588,-463.83277954,0.00019613,2]
[364137256,1749016233599,-378.18881437,0.00019613,2]
[364137257,1749016233609,-291.33931413,0.00019652,2]
[364137258,1749016233619,-229.286,0.00019861,2]
[364137259,1749016233631,-218.43,0.00019861,2]
[364137260,1749016233641,-490.35979412,0.00019861,2]
[364137261,1749016233651,-500.0,0.00019861,2]
[364137262,1749016233661,-440.0,0.00019861,2]
[364137263,1749016233671,-425.5,0.00019861,2]
[364137264,1749016233681,-440.0,0.00019861,2]
[364137265,1749016233692,-440.0,0.00019861,2]
[364137266,1749016233702,-440.0,0.00019861,2]
[364137267,1749016233713,-440.0,0.00019861,2]
[364137268,1749016233723,-440.0,0.00019861,2]
[364137269,1749016233733,-440.0,0.00019861,2]
[364137270,1749016233744,-440.0,0.00019861,2]
[364137271,1749016233754,-440.0,0.00019861,2]
[364137272,1749016233765,-487.73,0.00019882,2]
[364137273,1749016233776,-440.0,0.00019882,2]
[364137274,1749016233786,-440.0,0.00019882,2]
[364137275,1749016233796,-420.0,0.00019882,2]
[364137276,1749016233807,-440.0,0.00019882,2]
[364137277,1749016233817,-440.0,0.00019882,2]
[364137278,1749016233827,-440.0,0.00019882,2]
[364137279,1749016233837,-417.41324943,0.00019882,2]
[364137280,1749016233847,-440.0,0.00019882,2]
[364137281,1749016233857,-440.0,0.00019882,2]
[364137282,1749016233867,-440.0,0.00019882,2]
[364137283,1749016233879,-440.0,0.00019882,2]
[364137284,1749016233889,-440.0,0.00019882,2]
[364137285,1749016233900,-440.0,0.00019882,2]
[364137286,1749016233910,-440.0,0.00019882,2]
[364137287,1749016233921,-258.19901486,0.00019883,2]
[364137288,1749016233931,-440.0,0.00019883,2]
[364137289,1749016233941,-440.0,0.00019883,2]
[364137290,1749016233950,-440.0,0.00019883,2]
[364137291,1749016233960,-440.0,0.00019883,2]
[364137292,1749016233970,-440.0,0.00019883,2]
[364137293,1749016233979,-440.0,0.00019883,2]
[364137294,1749016233988,-440.0,0.00019883,2]
[364137295,1749016233998,-232.78,0.00019883,2]
[364137296,1749016234009,-440.0,0.00019883,2]
[364137297,1749016234019,-440.0,0.00019883,2]
[364137298,1749016234029,-440.0,0.00019883,2]
[364137299,1749016234039,-440.0,0.00019883,2]
[364137300,1749016234049,-440.0,0.00019883,2]
[364137301,1749016234059,-440.0,0.00019883,2]
[364137302,1749016234068,-440.0,0.00019883,2]
[364137303,1749016234078,-440.0,0.00019883,2]
[364137304,1749016234088,-440.0,0.00019883,2]
[364137305,1749016234098,-440.0,0.00019884,2]
[364137306,1749016234108,-586.42314775,0.00019887,2]
[364137307,1749016234118,-397.41348155,0.00019887,2]
[364137308,1749016234128,-420.00763487,0.000199,2]
[364137309,1749016234138,-500.88382077,0.0002007,2]
[364137310,1749016234148,-420.00763487,0.00020072,2]
[364137311,1749016234158,-410.0,0.00020135,2]
[364137312,1749016234168,-410.0,0.00020135,2]
[364137313,1749016234177,-460.71021645,0.00020135,2]
[364137314,1749016234186,-410.0,0.00020135,2]
[364137315,1749016234195,-410.0,0.00020135,2]
[364137316,1749016234205,-436.7367056,0.00020135,2]
[364137317,1749016234214,-410.0,0.00020135,2]
[364137318,1749016234222,-410.0,0.00020135,2]
[364137319,1749016234232,-440.0,0.00020135,2]
[364137320,1749016234242,-487.73,0.00020156,2]
[364137321,1749016234253,-440.0,0.00020156,2]
[364137322,1749016234263,-410.0,0.00020156,2]
[364137323,1749016234273,-410.0,0.00020156,2]
[364137324,1749016234283,-410.0,0.00020156,2]
[364137325,1749016234292,-410.0,0.00020156,2]
[364137326,1749016234302,-410.0,0.00020156,2]
[364137327,1749016234312,-440.0,0.00020156,2]
[364137328,1749016234322,-440.0,0.00020156,2]
[364137329,1749016234331,-410.0,0.00020156,2]
[364137330,1749016234341,-410.0,0.00020156,2]
[364137331,1749016234354,-318.38,0.00020156,2]
[364137332,1749016234363,-440.0,0.00020156,2]
[364137333,1749016234373,-440.0,0.00020157,2]
[364137334,1749016234384,-410.0,0.00020157,2]
[364137335,1749016234394,-410.0,0.00020157,2]
[364137336,1749016234404,-410.0,0.00020157,2]
[364137337,1749016234415,-410.0,0.00020157,2]
[364137338,1749016234426,-410.0,0.00020157,2]
[364137339,1749016234436,-413.42,0.00020157,2]
[364137340,1749016234600,-410.0,0.00020157,2]
[364137341,1749016234611,-410.0,0.00020157,2]
[364137342,1749016234621,-410.0,0.00020157,2]
[364137343,1749016234632,-537.57,0.00020157,2]
[364137344,1749016234642,-410.0,0.00020157,2]
[364137345,1749016234652,-410.0,0.00020157,2]
[364137346,1749016234661,-410.0,0.00020157,2]
[364137347,1749016234672,-440.0,0.00020157,2]
[364137348,1749016234681,-440.0,0.00020157,2]
[364137349,1749016234692,-440.0,0.00020158,2]
[364137350,1749016234702,-502.83497695,0.00020177,2]
[364137351,1749016234712,-209.478977,0.00020187,2]
[364137352,1749016234722,-500.0,0.0002019,2]
[364137353,1749016234732,-151.0,0.0002019,2]
[364137354,1749016234743,-153.21743087,0.0002019,2]
[364137355,1749016234753,-471.47148591,0.000202,2]
[364137356,1749016234764,-500.0,0.00020217,2]
[364137357,1749016234774,-151.0,0.00020217,2]
[364137358,1749016234784,-300.0,0.00020218,2]
[364137359,1749016234794,-500.0,0.00020245,2]
[364137360,1749016234804,-151.0,0.00020245,2]
[364137361,1749016234814,-420.00763487,0.00020245,2]
[364137362,1749016234823,-500.0,0.0002025,2]
[364137363,1749016234833,-500.0,0.0002025,2]
[364137364,1749016234843,-500.0,0.00020272,2]
[364137365,1749016234854,-151.0,0.00020272,2]
[364137366,1749016234864,-500.0,0.000203,2]
[364137367,1749016234874,-151.0,0.000203,2]
[364137368,1749016234884,-500.0,0.00020307,2]
[364137369,1749016234893,-500.0,0.00020327,2]
[364137370,1749016234903,-245.0,0.00020327,2]
[364137371,1749016234913,-900.0,0.00020331,2]
[364137372,1749016234923,-500.0,0.00020354,2]
[364137373,1749016234932,-409.28594055,0.00020362,2]
[364137374,1749016234941,-500.0,0.00020382,2]
[364137375,1749016234951,-400.0,0.00020409,2]
[364137376,1749016234960,-500.0,0.00020409,2]
[364137377,1749016234970,-420.00763487,0.00020417,3]
[364137378,1749016234979,-487.73,0.0002043,2]
[364137379,1749016234989,-440.0,0.0002043,2]
[364137380,1749016234998,-440.0,0.0002043,2]
[364137381,1749016235008,-440.0,0.0002043,2]
[364137382,1749016235018,-374.88,0.0002043,2]
[364137383,1749016235028,-440.0,0.00020431,2]
[364137384,1749016235038,-440.0,0.00020431,2]
[364137385,1749016235047,-440.0,0.00020431,2]
[364137386,1749016235057,-400.0,0.00020432,2]
[364137387,1749016235068,-500.0,0.00020437,2]
[364137388,1749016235078,-500.0,0.00020464,2]
[364137389,1749016235088,-275.43614523,0.00020491,2]
[364137390,1749016235098,-420.00763487,0.0002059,3]
[364137391,1749016235107,-487.73,0.00020704,2]
[364137392,1749016235117,-239.08,0.00020704,2]
[364137393,1749016235128,-440.0,0.00020704,2]
[364137394,1749016235138,-440.0,0.00020704,2]
[364137395,1749016235147,-273.16,0.00020705,2]
[364137396,1749016235157,-440.0,0.00020705,2]
[364137397,1749016235166,-440.0,0.00020705,2]
[364137398,1749016235176,-420.00763487,0.00020762,3]
[364137399,1749016235185,-420.00763487,0.00020934,4]
[364137400,1749016235195,-487.73,0.00020978,2]
[364137401,1749016235205,-440.0,0.00020978,2]
[364137402,1749016235215,-440.0,0.00020978,2]
[364137403,1749016235223,-440.0,0.00020979,2]
[364137404,1749016235232,-440.0,0.00020979,2]
[364137405,1749016235241,-420.00763487,0.00021107,4]
[364137406,1749016235251,-487.73,0.00021252,2]
[364137407,1749016235260,-440.0,0.00021252,2]
[364137408,1749016235270,-440.0,0.00021252,2]
[364137409,1749016235279,-440.0,0.00021253,2]
[364137410,1749016235287,-440.0,0.00021253,2]
[364137411,1749016235297,-420.00763487,0.00021279,5]
[364137412,1749016235307,-160.0,0.00021365,2]
[364137413,1749016235316,-207.4,0.00021366,2]
[364137414,1749016235327,-500.0,0.00021366,2]
[364137415,1749016235337,-500.0,0.00021366,2]
[364137416,1749016235347,-500.0,0.00021366,2]
[364137417,1749016235361,-500.0,0.00021366,2]
[364137418,1749016235371,-500.0,0.00021366,2]
[364137419,1749016235381,-500.0,0.00021366,2]
[364137420,1749016235391,-500.0,0.00021366,2]
[364137421,1749016235403,-500.0,0.00021366,2]
[364137422,1749016235412,-500.0,0.00021366,2]
[364137423,1749016235422,-500.0,0.00021366,2]
[364137424,1749016235434,-500.0,0.00021366,2]
[364137425,1749016235444,-500.0,0.00021366,2]
[364137426,1749016235454,-500.0,0.00021366,2]
[364137427,1749016235464,-500.0,0.00021366,2]
[364137428,1749016235474,-500.0,0.00021366,2]
[364137429,1749016235484,-500.0,0.00021366,2]
[364137430,1749016235493,-500.0,0.00021366,2]
[364137431,1749016235503,-500.0,0.00021366,2]
[364137432,1749016235513,-500.0,0.00021366,2]
[364137433,1749016235523,-500.0,0.00021366,2]
[364137434,1749016235533,-500.0,0.00021366,2]
[364137435,1749016235543,-500.0,0.00021366,2]
[364137436,1749016235552,-500.0,0.00021366,2]
[364137437,1749016235562,-500.0,0.00021366,2]
[364137438,1749016235572,-500.0,0.00021366,2]
[364137439,1749016235582,-500.0,0.00021366,2]
[364137440,1749016235592,-500.0,0.00021366,2]
[364137441,1749016235602,-500.0,0.00021366,2]
[364137442,1749016235612,-500.0,0.00021366,2]
[364137443,1749016235622,-500.0,0.00021366,2]
[364137444,1749016235633,-900.0,0.00021427,2]
[364137445,1749016235643,-2685.9,0.00021427,2]
[364137446,1749016235653,-2685.9,0.00021427,2]
[364137447,1749016235663,-420.00763487,0.00021452,5]
[364137448,1749016235673,-3669.38177153,0.00021526,3]
[364137449,1749016235683,-487.73,0.00021526,2]
[364137450,1749016235693,-440.0,0.00021526,2]
[364137451,1749016235703,-440.0,0.00021526,2]
[364137452,1749016235713,-129843.58338,0.00021526,2]
[364137453,1749016235724,-440.0,0.00021527,2]
[364137454,1749016235733,-440.0,0.00021527,2]
[364137455,1749016235743,-1280.805958,0.0002156,3]
[364137456,1749016235753,-420.00763487,0.00021624,5]
[364137457,1749016235763,-420.00763487,0.00021797,6]
[364137458,1749016235773,-5000.0,0.000218,2]
[364137459,1749016235783,-487.73,0.000218,2]
[364137460,1749016235792,-440.0,0.000218,2]
[364137461,1749016235803,-440.0,0.000218,2]
[364137462,1749016235812,-440.0,0.00021801,2]
[364137463,1749016235822,-440.0,0.00021801,2]
[364137464,1749016235831,-5000.0,0.0002181,7]
[364137465,1749016235841,-5002.4718267,0.0002183,14]
[364137466,1749016235851,-420.00763487,0.00021969,6]
[364137467,1749016235861,-209.33,0.00021989,3]
[364137468,1749016235870,-628.04,0.00021989,3]
[364137469,1749016235880,-4535.57255569,0.0002199,2]
[364137470,1749016235890,-440.0,0.00021998,2]
[364137471,1749016235903,-109360.40684594,0.00021999,2]
[364137511,1749016237856,-257.95227475,0.00021999,2]
[364137512,1749016237866,-500.0,0.00021999,2]
[364137513,1749016237877,-500.0,0.00021999,2]
[364137514,1749016237890,-241.96950438,0.00021999,2]
[364137515,1749016237899,-500.0,0.00021999,2]
[364137516,1749016237908,-500.0,0.00021999,2]
[364137517,1749016237918,-231.10977753,0.00021999,2]
[364137518,1749016237928,-1483.92774692,0.00021999,2]
[364137519,1749016237938,-500.0,0.00021999,2]
[364137520,1749016237948,-500.0,0.00021999,2]
[364137521,1749016237990,-236.90528067,0.00021999,2]
[364137522,1749016238000,-500.0,0.00021999,2]
[364137523,1749016238009,-1483.92774692,0.00021999,2]
[364137524,1749016238019,-500.0,0.00021999,2]
[364137525,1749016238028,-500.0,0.00021999,2]
[364137526,1749016238038,-500.0,0.00021999,2]
[364137527,1749016238047,-500.0,0.00021999,2]
[364137528,1749016238056,-1483.92774692,0.00021999,2]
[364137529,1749016238066,-500.0,0.00021999,2]
[364137530,1749016238075,-500.0,0.00021999,2]
[364137531,1749016238085,-1483.92774692,0.00021999,2]
[364137532,1749016238094,-500.0,0.00021999,2]
[364137533,1749016238104,-560.31219126,0.00021999,2]
[364137534,1749016238113,-500.0,0.00021999,2]
[364137535,1749016238123,-500.0,0.00021999,2]
[364137536,1749016238132,-1483.92774692,0.00021999,2]
[364137537,1749016238141,-500.0,0.00021999,2]
[364137539,1749016238150,-500.0,0.00021999,2]
[364137541,1749016238160,-500.0,0.00021999,2]
[364137542,1749016238169,-500.0,0.00021999,2]
[364137544,1749016238179,-1483.92774692,0.00021999,2]
[364137546,1749016238188,-500.0,0.00021999,2]
[364137548,1749016238197,-500.0,0.00021999,2]
[364137549,1749016238207,-500.0,0.00021999,2]
[364137550,1749016238216,-1483.92774692,0.00021999,2]
[364137551,1749016238226,-500.0,0.00021999,2]
[364137552,1749016238235,-500.0,0.00021999,2]
[364137553,1749016238245,-500.0,0.00021999,2]
[364137554,1749016238254,-500.0,0.00021999,2]
[364137555,1749016238264,-1483.92774692,0.00021999,2]
[364137556,1749016238273,-500.0,0.00021999,2]
[364137557,1749016238283,-420.68007823,0.00021999,2]